[Event "1st Serbian League 2022"]
[Site "Vrnjacka Banja"]
[Date "2022.09.22"]
[Round "3.17"]
[White "Radovanovic, Mihajlo"]
[Black "Zlatanovic, Boroljub"]
[Result "1-0"]
[ECO "E97"]
[WhiteElo "2438"]
[BlackElo "2313"]
[Annotator "TA"]
[PlyCount "277"]
[EventDate "2022.09.20"]
[EventType "team-tourn"]
[EventCountry "SRB"]
[SourceTitle "playchess.com"]
[Source "ChessBase"]
[SourceQuality "1"]
[TimeControl "40/5400+30:1800+30"]

{[%evp 18,277,36,45,43,49,50,51,56,54,50,37,34,17,73,59,70,37,41,18,22,42,25,8,21,0,68,76,86,46,35,36,37,30,86,21,20,20,8,6,0,0,0,0,0,-37,-35,-26,-16,-24,-26,-23,0,19,3,0,152,156,219,158,130,0,0,0,0,0,0,0,0,0,0,0,0,0,0,0,0,0,0,0,0,0,0,0,0,0,0,0,0,0,0,0,0,0,0,0,0,0,0,0,0,0,0,0,0,0,0,0,0,0,0,0,0,0,0,0,0,0,27993,0,27991,27991,27993,27993,27994,27994,27978,27978,27979,27979,27980,27979,27980,27980,27981,27979,27980,27979,27980,27980,27981,27981,27993,27993,27994,27992,27993,27993,27994,27994,27995,27995,27996,27996,27997,27997,27998,27998,27999,27999,27996,27996,27998,27997,27998,27998,27999,27999,27971,27971,27990,27975,27976,27975,27976,27976,27977,27977,27978,27978,27979,27967,27968,27968,27971,27971,27972,27971,27972,27968,27992,27982,27983,27982,27997,27991,27992,27992,27995,27995,27996,27992,27994,27993,27994,27991,27992,27985,27986,27986,27990,27985,27987,27985,27990,27981,27982,27980,27981,0,27985,27980,27983,27981,27982,27981,27982,27982,27983,0,27975,0,27978,27973,27981,27973,27974,27974,27975,27975,27979,27979,27980,27980,27989,27989,27990,27990,27994,27980,27994,27992,27993,27979,27994,27993,27997,27997,27998,27998,27999,27999]} 1. d4 {[%emt 0:00:04]} Nf6 {[%emt 0:00:08]} 2. Nf3 {[%emt 0:00:18]} g6 {[%emt 0:00:08]} 3. c4 {[%emt 0:00:09]} Bg7 {[%emt 0:00:12]} 4. Nc3 {[%emt 0:00:36]} d6 {[%emt 0:00:09]} 5. e4 {[%emt 0:00:12]} O-O {[%emt 0:00:09]} 6. Be2 {[%emt 0:00:18]} e5 {[%emt 0:00:25]} 7. O-O {[%emt 0:00:09]} Nc6 {[%emt 0:04:43]} 8. d5 {[%emt 0:00:30]} Ne7 {[%emt 0:00:09]} 9. b4 {[%emt 0:00:31]} Ne8 {[%emt 0:03:53]} 10. a4 {[%emt 0:01:42] seems to push 10.c5 aside.} f5 {[%emt 0:03:10] E97: King's Indian: Classical Main Line (6...e5 7 0-0 Nc6): 8 Be3 and 8 d5 Ne7, not 9 Ne1.} 11. a5 {[%emt 0:01:15]} Nf6 {[%emt 0:07:59]} 12. Ra3 {[%emt 0:00:21]} fxe4 {[%emt 0:06:44] White is slightly better.} 13. Ng5 {[%emt 0:01:12] [#]} Nf5 $146 {[%emt 0:02:43]} ({Predecessor:} 13... Bf5 14. g4 h6 15. gxf5 hxg5 16. fxg6 Nxg6 17. Bxg5 Qd7 18. Bxf6 Rxf6 19. Bg4 Qe7 20. Nxe4 Rf4 21. Be6+ Kf8 22. Rg3 Nh4 23. Qh5 Rxe4 24. Qh8+ Bxh8 25. Rg8# {1-0 (25) Gago Padreny,I (2247)-Ovezdurdiyeva,J (2061) Chess.com INT 2021}) 14. Ncxe4 {[%emt 0:04:59]} Nd4 {[%emt 0:03:19]} 15. Bd3 {[%emt 0:02:05]} Bf5 {[%emt 0:03:28]} (15... Nh5 $11 {remains equal.}) 16. Ng3 {[%emt 0:18:14]} Bg4 {[%emt 0:09:05]} 17. Qe1 {[%emt 0:06:25]} c6 {[%emt 0:03:23]} 18. Be3 {[%emt 0:13:30]} cxd5 {[%emt 0:04:35]} 19. cxd5 {[%emt 0:00:53]} Rc8 {[%emt 0:06:53]} (19... Nxd5 $2 20. Bc4 $18) 20. Qb1 {[%emt 0:11:33]} Kh8 {[%emt 0:07:33]} (20... Nxd5 $2 21. Qa2 $18) 21. Qa2 {[%emt 0:02:32]} (21. Bxd4 exd4 22. h3 (22. Ne6 Bxe6 23. dxe6 Nd5 $17) 22... Bd7) 21... Qe8 {[%emt 0:07:12]} (21... Bd7 $11) 22. h3 $14 {[%emt 0:09:55]} Bd7 {[%emt 0:00:53]} 23. N3e4 {[%emt 0:01:33]} Qe7 {[%emt 0:04:24]} 24. Nxf6 {[%emt 0:00:23]} Bxf6 {[%emt 0:03:41]} 25. Ne4 {[%emt 0:00:07]} Nb5 {[%emt 0:00:46]} (25... Bf5 $11) 26. Rb3 {[%emt 0:03:50] White is more active.} (26. Bxb5 $16 Bxb5 27. Rc1) 26... Bf5 $11 {[%emt 0:02:51]} 27. Nxf6 {[%emt 0:01:17]} Bxd3 {[%emt 0:00:12]} 28. Rxd3 {[%emt 0:02:24] [#] And now Ne4 would win.} Qxf6 {[%emt 0:00:18]} 29. a6 {[%emt 0:00:09]} b6 {[%emt 0:01:53]} 30. Qa4 {[%emt 0:00:57]} Nc3 {[%emt 0:02:06]} 31. Qd7 {[%emt 0:00:10]} (31. Qc2 $5 {[%cal Rd3c3]} Ne4 32. Qd1 $15) 31... Qf5 {[%emt 0:00:35]} 32. Qxf5 {[%emt 0:04:38]} gxf5 {[%emt 0:00:16]} 33. f4 $1 {[%emt 0:01:42]} Ne2+ {[%emt 0:02:27]} 34. Kf2 {[%emt 0:00:01]} Nxf4 {[%emt 0:01:06]} (34... e4 $5 {[%cal Re4d3]} 35. Rd2 Nc1 $15) 35. Bxf4 {[%emt 0:00:09]} exf4 {[%emt 0:00:01][%mdl 4096] Endgame KRR-KRR} 36. Re1 {[%emt 0:00:22]} Rg8 $2 {[%emt 0:00:58]} (36... Kg7 $1 $11) 37. Rd2 $16 {[%emt 0:00:57]} Rc4 {[%emt 0:00:36]} 38. Re7 {[%emt 0:01:56]} Rg7 {[%emt 0:01:53]} 39. Rb7 {[%emt 0:00:25]} (39. Re8+ $16 Rg8 40. Re6) 39... Rxb4 $11 {[%emt 0:02:27]} 40. Rc2 {[%emt 0:00:09]} h5 {[%emt 0:01:39]} 41. Rc8+ {[%emt 0:33:25]} (41. Rxg7 Kxg7 42. Rc7+ Kf6 43. Rxa7 Ra4 $17) 41... Kh7 $1 {[%emt 0:31:09]} 42. Ra8 {[%emt 0:00:15]} Kh6 {[%emt 0:03:58]} (42... Rb2+ 43. Kf3 Kh6 44. Rxg7 (44. Rbxa7 Rxa7 45. Rxa7 Kg5 $11) (44. Raxa7 Rg8 $16) 44... Kxg7 45. Rxa7+ Kf6 46. Ra8 (46. Kxf4 Ra2 $11) 46... Rb3+ 47. Kxf4 Rb4+ 48. Ke3 $16) 43. Rh8+ {[%emt 0:00:00]} Kg6 {[%emt 0:00:00]} 44. Rd8 {[%emt 0:00:00]} Kf6 {[%emt 0:00:00]} (44... Rb2+ 45. Kf3 Kf6 46. Rxd6+ Ke5 47. Re6+ (47. Rxg7 Rb3+ 48. Ke2 Rb2+ 49. Kd3 Kxd6 $11) 47... Kxd5 48. Rxg7 $14) (44... Rb2+ {is more complex.} 45. Kf3 Kf6 46. Rxd6+ Ke5) 45. Rxg7 {[%emt 0:00:17]} Kxg7 {[%emt 0:00:00]} 46. Rxd6 {[%emt 0:00:06] [#] Hoping for Rd7+. KR-KR} Ra4 $1 {[%emt 0:00:00]} 47. Rd7+ {[%emt 0:01:53]} Kf6 {[%emt 0:00:00]} 48. Rxa7 {[%emt 0:00:10] Threatens to win with Ra8.} Ke5 {[%emt 0:00:00]} 49. Ra8 {[%emt 0:01:29]} Kxd5 {[%emt 0:00:00]} 50. Kf3 {[%emt 0:01:25]} Kc6 {[%emt 0:00:00]} 51. h4 {[%emt 0:01:00]} Kb5 {[%emt 0:00:00]} 52. Rh8 {[%emt 0:01:21]} Kxa6 {[%emt 0:00:00]} 53. Rxh5 {[%emt 0:00:09]} b5 {[%emt 0:00:00]} 54. Rxf5 {[%emt 0:00:58]} b4 {[%emt 0:00:00] Strongly threatening ...b3.} 55. Rxf4 {[%emt 0:04:33]} Kb5 {[%emt 0:00:00]} 56. h5 {[%emt 0:00:31] h6 is the strong threat.} b3 {[%emt 0:00:00]} 57. Rxa4 {[%emt 0:00:53][%mdl 8192]} (57. Rf8 $11) 57... Kxa4 {[%emt 0:00:00] KPP-KP} (57... b2 {gets mated.} 58. Ra8 Kc4 59. Rb8 Kc3 60. h6 Kc2 61. h7 b1=Q 62. Rxb1 Kxb1 63. h8=Q) 58. h6 {[%emt 0:00:07]} b2 {[%emt 0:00:00]} 59. h7 {[%emt 0:00:02]} b1=Q {[%emt 0:00:00]} 60. h8=Q {[%emt 0:00:03] KQ-KQ} Qf5+ {[%emt 0:00:00]} 61. Kg3 {[%emt 0:00:24]} Kb5 $2 {[%emt 0:00:11][%mdl 8192]} (61... Qg5+ $11 62. Kh2 Qf4+ 63. Kh3 Qf5+ 64. Kg3 Qg5+ 65. Kh2 Qf4+ 66. Kh3 Qf5+ 67. Kg3) 62. Qd4 {[%emt 0:02:11]} Kc6 $2 {[%emt 0:01:31][%mdl 8192]} (62... Qg6+ $11 63. Qg4 Qf6 64. Qh5+ Kb6) 63. Qc4+ {[%emt 0:00:04]} Kb6 {[%emt 0:00:23]} 64. Qf4 $2 {[%emt 0:00:23][%mdl 8192]} (64. Qd4+ $11 Kb5 65. Qf4) 64... Qg6+ $2 {[%emt 0:01:10][%mdl 8192]} (64... Qd5 $11) 65. Kf3 $2 {[%emt 0:00:30][%mdl 8192]} (65. Kf2 $11) 65... Qh5+ $2 {[%emt 0:00:36][%mdl 8192]} (65... Qc6+ $11 66. Qe4 Qf6+ 67. Kg4 Qg7+ 68. Kh5 Qh8+ 69. Kg5 Qd8+ 70. Kg4 Qc8+ 71. Qf5 Qc6) 66. g4 $2 {[%emt 0:00:19][%mdl 8192]} (66. Ke4 $11) 66... Qh3+ $2 {[%emt 0:00:44][%mdl 8192]} (66... Qd5+ $11 67. Qe4 Qd1+ 68. Kf4 Qd6+ 69. Qe5 Qf8+ 70. Qf5 Qb8+ 71. Kf3 Qa8+ 72. Kg3 Qa3+ 73. Kf4 Qc1+ 74. Ke5 Qe3+ 75. Kf6 Qc3+ 76. Ke6 Qc4+ 77. Ke7 Qc7+ 78. Kf8 Qd8+ 79. Kg7 Qe7+ 80. Kh6 Qe1) 67. Ke4 {[%emt 0:00:01]} Kc6 $2 {[%emt 0:00:39][%mdl 8192] White leaves nothing to chance now.} (67... Ka5 $11) 68. Qf6+ {[%emt 0:00:36]} Kd7 $2 {[%emt 0:00:51][%mdl 8192]} (68... Kb5 $11) 69. Kf5 {[%emt 0:00:10]} Ke8 {[%emt 0:02:01]} 70. Kg5 {[%emt 0:00:05]} Qe3+ {[%emt 0:00:35]} 71. Kg6 {[%emt 0:00:05]} Qb3 {[%emt 0:01:16]} 72. g5 {[%emt 0:00:26]} Qd3+ {[%emt 0:01:37]} 73. Kg7 {[%emt 0:00:11]} Qd7+ {[%emt 0:00:12]} 74. Kh8 {[%emt 0:00:42]} Qh3+ {[%emt 0:00:09]} 75. Kg8 {[%emt 0:00:05]} Qb3+ {[%emt 0:00:12]} 76. Kg7 {[%emt 0:00:05]} Qb7+ {[%emt 0:00:13]} 77. Kh8 {[%emt 0:00:13]} Qh1+ {[%emt 0:00:11]} 78. Kg8 {[%emt 0:01:10]} Qd5+ {[%emt 0:00:11]} 79. Kh7 {[%emt 0:00:06]} Qd7+ {[%emt 0:01:12]} 80. Qg7 {[%emt 0:01:09]} Qh3+ {[%emt 0:00:28]} 81. Kg8 {[%emt 0:00:40]} Qe6+ {[%emt 0:00:44]} 82. Kh7 {[%emt 0:00:30]} Qh3+ {[%emt 0:00:10]} 83. Qh6 {[%emt 0:00:18]} Qd7+ {[%emt 0:00:25]} 84. Kh8 {[%emt 0:00:11]} Qd4+ {[%emt 0:00:37]} 85. Qg7 {[%emt 0:00:26]} Qh4+ {[%emt 0:00:08]} 86. Kg8 {[%emt 0:00:08]} Qc4+ {[%emt 0:00:09]} 87. Kh7 {[%emt 0:00:06]} Qh4+ {[%emt 0:01:54]} 88. Qh6 {[%emt 0:00:08]} Qf4 {[%emt 0:01:07]} 89. g6 {[%emt 0:02:21][%cal Bg5g6,Bg6g7][%mdl 32]} Qe4 {[%emt 0:00:11]} 90. Qg7 {[%emt 0:00:39]} Qf5 {[%emt 0:01:39]} 91. Kg8 {[%emt 0:00:19]} Qh5 {[%emt 0:00:16]} 92. Qf7+ {[%emt 0:00:59]} Kd8 {[%emt 0:00:02]} 93. g7 {[%emt 0:01:04]} Qg5 {[%emt 0:00:29]} 94. Qe6 {[%emt 0:00:09]} Qh4 {[%emt 0:01:06]} 95. Qd6+ {[%emt 0:01:13]} Ke8 {[%emt 0:00:12]} 96. Qe5+ {[%emt 0:00:05]} Kd7 {[%emt 0:00:20]} 97. Kf7 {[%emt 0:01:44]} Qc4+ {[%emt 0:00:17]} 98. Kg6 {[%emt 0:00:25]} Qg4+ {[%emt 0:01:16]} 99. Qg5 {[%emt 0:00:13]} Qe6+ {[%emt 0:00:33]} 100. Kh7 {[%emt 0:00:24]} Qh3+ {[%emt 0:00:07]} 101. Qh6 {[%emt 0:00:13]} Qf5+ {[%emt 0:00:07]} 102. Kh8 {[%emt 0:00:12]} Qe5 {[%emt 0:00:06]} 103. Qh3+ {[%emt 0:01:20]} Kc6 {[%emt 0:00:26]} 104. Qf3+ {[%emt 0:00:23]} Kb5 {[%emt 0:00:49]} 105. Kh7 {[%emt 0:00:24]} Qe7 {[%emt 0:01:13]} 106. Kg6 {[%emt 0:00:23]} Qe6+ {[%emt 0:00:42]} 107. Qf6 {[%emt 0:00:05]} Qc4 {[%emt 0:00:46]} 108. Qe5+ {[%emt 0:00:56]} Ka6 {[%emt 0:00:28]} 109. Qd6+ {[%emt 0:00:34]} Kb7 {[%emt 0:00:57]} 110. Qe7+ {[%emt 0:00:15]} Ka6 {[%emt 0:00:16]} 111. Qa3+ {[%emt 0:00:46]} Kb5 {[%emt 0:00:20]} 112. Qb2+ {[%emt 0:00:15]} Ka4 {[%emt 0:00:37]} 113. Qe5 {[%emt 0:00:36]} (113. Kh7 Qe4+ 114. Kh8 Qh1+ 115. Kg8 Qd5+ 116. Kh8 Qh1+ 117. Kg8 Qd5+ 118. Kh7 Qh5+ 119. Kg8 Qd5+ $11) 113... Qc6+ {[%emt 0:00:56]} 114. Kf7 {[%emt 0:00:17]} Qb7+ {[%emt 0:01:08]} 115. Kf8 {[%emt 0:00:14]} Qb4+ {[%emt 0:00:18]} 116. Qe7 {[%emt 0:00:15]} Qf4+ {[%emt 0:00:10]} 117. Qf7 {[%emt 0:00:08]} Qd6+ {[%emt 0:00:16]} 118. Kg8 {[%emt 0:00:09]} Qd4 $2 {[%emt 0:00:42][%mdl 8192]} (118... Qd8+ $11 119. Kh7 Qh4+ 120. Kg8 (120. Kg6 Qg3+ 121. Kh5 Qh2+ 122. Kg5 Qg3+ 123. Kh6 Qe3+ 124. Kh5 Qh3+ 125. Kg6 Qg3+ 126. Kh6 Qe3+ 127. Kh7 Qh3+ 128. Kg8 Qc8+ 129. Qf8 Qe6+ 130. Kh8 Qh3+ 131. Kg8 Qe6+ 132. Qf7 Qc8+ 133. Kh7 Qh3+ 134. Kg8 Qc8+ $11) 120... Qd8+ 121. Kh7 Qh4+ 122. Kg8 (122. Kg6 Qg3+ 123. Kf6 Qf4+ 124. Ke7 Qb4+ 125. Ke6 Qc4+ 126. Ke7 Qb4+ 127. Kd7 Qb7+ 128. Ke6 Qb6+ 129. Ke7 Qb4+ $11) 122... Qd8+) 119. Qe6 {[%emt 0:00:18]} Qf4 {[%emt 0:00:49]} 120. Qe8+ {[%emt 0:00:12]} Ka5 {[%emt 0:00:07]} 121. Qh5+ {[%emt 0:00:37]} Ka4 {[%emt 0:00:27]} 122. Kh8 {[%emt 0:00:07]} Qd4 {[%emt 0:00:34]} 123. Qg5 {[%emt 0:00:25]} Ka3 $2 {[%emt 0:00:54][%mdl 8192]} (123... Kb3 $11 124. Qf5 Qc3) 124. Qe7+ {[%emt 0:00:01]} Ka4 $2 {[%emt 0:00:23][%mdl 8192]} (124... Kb3 $11 125. Qf7+ Kb2 126. Qb7+ Ka2 127. Qg2+ Ka1) 125. Kg8 {[%emt 0:00:22] White mates.} Qf4 {[%emt 0:00:36]} 126. Kh7 {[%emt 0:00:20]} Qf5+ {[%emt 0:00:43]} 127. Kh6 {[%emt 0:02:18]} Qh3+ {[%emt 0:00:15]} 128. Kg6 {[%emt 0:00:10]} Qg4+ {[%emt 0:00:30]} 129. Qg5 {[%emt 0:00:38]} Qe6+ {[%emt 0:00:09]} 130. Kh5 {[%emt 0:00:10]} Qf7+ {[%emt 0:00:27]} 131. Kg4 {[%emt 0:00:47]} Qe6+ {[%emt 0:01:20]} 132. Qf5 {[%emt 0:00:43]} Qe2+ {[%emt 0:01:11]} 133. Kh4 {[%emt 0:00:45]} Qe1+ {[%emt 0:00:44]} 134. Kh5 {[%emt 0:00:17]} Qe8+ {[%emt 0:00:12]} 135. Qg6 {[%emt 0:00:44]} Qg8 {[%emt 0:00:20]} 136. Qc6+ {[%emt 0:00:58]} Ka5 {[%emt 0:00:12]} 137. Kg6 {[%emt 0:00:21]} Kb4 {[%emt 0:01:26]} 138. Qb7+ {[%emt 0:00:09]} Ka3 {[%emt 0:00:17]} 139. Qf7 {[%emt 0:00:06] Weighted Error Value: White=0.11 (very precise) /Black=0.10 (very precise)} 1-0

[Event "1st Serbian League 2022"]
[Site "Vrnjacka Banja"]
[Date "2022.09.22"]
[Round "3.18"]
[White "Radlovacki, Jovan"]
[Black "Lukovic, Vladimir"]
[Result "0-1"]
[ECO "C54"]
[WhiteElo "2287"]
[BlackElo "2419"]
[Annotator "TA"]
[PlyCount "73"]
[EventDate "2022.09.20"]
[EventType "team-tourn"]
[EventCountry "SRB"]
[SourceTitle "playchess.com"]
[Source "ChessBase"]
[SourceQuality "1"]
[TimeControl "40/5400+30:1800+30"]

{[%evp 9,73,9,24,11,29,0,5,6,9,9,21,0,0,17,21,3,11,3,0,0,5,0,25,-8,19,12,19,0,0,0,0,-31,-23,-31,-28,-28,-22,-58,-49,-38,-36,-69,-39,-38,-18,-119,-110,-118,-116,-114,-105,-106,-106,-106,-114,-112,-122,-341,-335,-365,-341,-29964,-29965,-6575,-5693,-29990]} 1. e4 {[%emt 0:00:19]} e5 {[%emt 0:00:18]} 2. Bc4 {[%emt 0:00:23]} Nf6 {[%emt 0:00:41]} 3. d3 {[%emt 0:00:12]} Nc6 {[%emt 0:00:38]} 4. Nf3 {[%emt 0:01:24]} Bc5 {[%emt 0:00:41]} 5. c3 {[%emt 0:02:48]} d6 {[%emt 0:00:33]} 6. a4 {[%emt 0:00:29] [#] And now b4 would win. C54: Giuoco Piano: 4 c3 Nf6, main lines with 5 d4 and 5 d3.} a6 {[%emt 0:00:58]} 7. a5 {[%emt 0:00:17]} h6 {[%emt 0:01:29]} 8. O-O {[%emt 0:02:11] The position is equal.} O-O {[%emt 0:00:53]} 9. Re1 {[%emt 0:00:46]} Ba7 {[%emt 0:01:41]} 10. Nbd2 {[%emt 0:01:06]} Ne7 {[%emt 0:01:12]} 11. Nf1 {[%emt 0:02:45] [#]} c6 $146 {[%emt 0:02:42]} ({Predecessor:} 11... Ng6 12. Ng3 c6 13. Bb3 d5 14. d4 dxe4 15. Nxe4 exd4 16. Nxd4 Nxe4 17. Rxe4 c5 {1-0 (39) Sengupta,D (2520)-Eugene,F (2377) Vandoeuvre 2021}) 12. Ba2 {[%emt 0:01:52]} Ng6 {[%emt 0:00:47]} 13. Be3 {[%emt 0:03:01]} Bxe3 {[%emt 0:04:55]} 14. Nxe3 {[%emt 0:01:27]} Re8 {[%emt 0:03:58]} (14... Nf4 {seems wilder.} 15. d4 exd4 16. Nxd4 Nxe4 17. Qf3 Nxf2 18. Qxf4 Nd3) 15. Qa4 {[%emt 0:08:30]} Be6 {[%emt 0:13:57]} 16. g3 {[%emt 0:16:46]} Bxa2 {[%emt 0:03:09]} 17. Qxa2 {[%emt 0:01:17]} Qc7 {[%emt 0:07:13]} 18. Re2 {[%emt 0:08:16]} Rad8 {[%emt 0:01:55]} 19. Rae1 {[%emt 0:00:21]} d5 {[%emt 0:01:17]} 20. exd5 {[%emt 0:03:39]} cxd5 {[%emt 0:01:49]} 21. d4 {[%emt 0:02:02]} e4 {[%emt 0:02:05]} 22. Nd2 {[%emt 0:01:54]} Qd7 {[%emt 0:00:33]} 23. f3 {[%emt 0:03:06]} exf3 $1 {[%emt 0:06:18]} 24. Nxf3 {[%emt 0:00:21][%cal Oe3d5]} Re6 {[%emt 0:01:09]} 25. Qb1 {[%emt 0:09:46][%cal Oe3g4]} Rde8 {[%emt 0:02:15]} 26. Qd3 {[%emt 0:01:27]} Ne4 {[%emt 0:03:44]} 27. Ne5 {[%emt 0:13:33]} (27. b4 $11 {keeps the balance.}) 27... Nxe5 $17 {[%emt 0:04:58]} 28. dxe5 {[%emt 0:00:06]} Rxe5 {[%emt 0:06:32]} 29. Nc4 {[%emt 0:00:41]} R5e6 {[%emt 0:01:02]} 30. Nb6 {[%emt 0:00:22]} Nc5 {[%emt 0:01:59]} 31. Qd4 {[%emt 0:06:57]} Qb5 {[%emt 0:03:22]} ({Resist} 31... Rxe2 32. Rxe2 Qd8 33. Rxe8+ (33. Qxd5 Ne6 $11) 33... Qxe8 34. Qxc5 $18) 32. Rxe6 {[%emt 0:01:02]} Rxe6 {[%emt 0:01:57]} 33. Rxe6 {[%emt 0:00:17] This costs White the game.} (33. Rf1 $17 {was necessary.}) 33... fxe6 $19 {[%emt 0:00:48]} (33... Nxe6 $2 {too greedy.} 34. Qa4 Qc5+ 35. Kg2 $19) 34. b4 {[%emt 0:03:07]} Ne4 {[%emt 0:00:31] Hoping for ...Qe2.} 35. Nc8 $2 {[%emt 0:04:57] [#]} (35. Qe5 $19 Ng5 36. Qe3 (36. Qb8+ $2 Kh7 $19)) 35... Qe2 {[%emt 0:00:49]} 36. Ne7+ {[%emt 0:00:26]} Kh7 {[%emt 0:02:22] ( -> ...Ng5)} 37. Nxd5 {[%emt 0:00:00] Weighted Error Value: White=0.44/Black=0.05 (flawless)} 0-1

[Event "1st Serbian League 2022"]
[Site "Vrnjacka Banja"]
[Date "2022.09.22"]
[Round "3.19"]
[White "Sarana, Alexey"]
[Black "Indjic, Aleksandar"]
[Result "1/2-1/2"]
[ECO "D41"]
[WhiteElo "2662"]
[BlackElo "2628"]
[Annotator "TA"]
[PlyCount "63"]
[EventDate "2022.09.20"]
[EventType "team-tourn"]
[EventCountry "SRB"]
[SourceTitle "playchess.com"]
[Source "ChessBase"]
[SourceQuality "1"]
[TimeControl "40/5400+30:1800+30"]

{[%evp 21,63,0,24,25,28,25,31,16,21,22,35,25,36,9,16,33,23,27,26,33,25,28,27,40,40,33,43,51,52,60,52,34,39,39,41,0,0,0,0,0,0,0,0,0]} 1. d4 {[%emt 0:00:03]} d5 {[%emt 0:02:15]} 2. c4 {[%emt 0:00:10]} e6 {[%emt 0:00:08]} 3. Nc3 {[%emt 0:00:05]} Nf6 {[%emt 0:00:07]} 4. cxd5 {[%emt 0:00:13]} Nxd5 {[%emt 0:00:09]} 5. e4 {[%emt 0:04:21]} Nxc3 {[%emt 0:00:09]} 6. bxc3 {[%emt 0:00:03]} c5 {[%emt 0:00:12]} 7. Nf3 {[%emt 0:01:12]} cxd4 {[%emt 0:00:09]} 8. cxd4 {[%emt 0:00:02]} Bb4+ {[%emt 0:00:14]} 9. Bd2 {[%emt 0:00:03]} Bxd2+ {[%emt 0:00:11]} 10. Qxd2 {[%emt 0:00:03]} O-O {[%emt 0:00:17]} 11. Bc4 {[%emt 0:01:58]} Nd7 {[%emt 0:00:18]} 12. O-O {[%emt 0:00:11] D41: Queen's Gambit Declined: Semi-Tarrasch with 5 cxd5.} b6 {[%emt 0:00:15]} 13. a4 {[%emt 0:00:17]} Bb7 {[%emt 0:01:10]} 14. Rfe1 {[%emt 0:00:07] White is slightly better.} Nf6 {[%emt 0:01:33]} 15. Bd3 {[%emt 0:00:03]} h6 {[%emt 0:00:18]} 16. h3 $1 {[%emt 0:00:25][%mdl 4] is currently scoring better than 16.a5.} Qc7 {[%emt 0:02:06]} 17. a5 {[%emt 0:00:48]} bxa5 {[%emt 0:00:21]} 18. Rxa5 {[%emt 0:00:11]} Rfc8 {[%emt 0:08:45]} 19. Qb4 {[%emt 0:04:16] [#]} Rcb8 $146 {[%emt 0:10:37][%cal Ob7e4] And now ...Bxe4! would win.} ({Predecessor:} 19... Qc3 20. Qxc3 Rxc3 21. Re3 Rac8 22. Rxa7 Bxe4 23. Bxe4 Rxe3 24. fxe3 Nxe4 {½-½ (45) Nepomniachtchi,I (2729)-Kryvoruchko,Y (2689) Riadh 2017}) 20. Qa3 {[%emt 0:10:50]} Qf4 {[%emt 0:11:52][%cal Rf6e4]} 21. d5 {[%emt 0:03:41]} ({Much worse is} 21. Rxa7 Nxe4 22. Rxa8 Rxa8 $11) 21... exd5 {[%emt 0:02:13]} 22. e5 {[%emt 0:00:05]} Ne4 {[%emt 0:00:14]} 23. Rxa7 {[%emt 0:00:18]} Rf8 {[%emt 0:01:11]} 24. Rxa8 {[%emt 0:04:18]} Bxa8 {[%emt 0:01:18]} 25. Qc1 {[%emt 0:04:13]} Qf5 {[%emt 0:06:47]} 26. Qe3 {[%emt 0:03:16]} f6 {[%emt 0:00:41]} 27. exf6 {[%emt 0:07:28]} Qxf6 {[%emt 0:00:29]} 28. Nd4 {[%emt 0:00:37]} Qxf2+ {[%emt 0:05:50] The position is equal.} 29. Qxf2 {[%emt 0:01:48]} Nxf2 {[%emt 0:00:08]} 30. Bg6 {[%emt 0:01:56] [#] Black must now prevent Nf5.} Ne4 {[%emt 0:00:07]} 31. Rc1 {[%emt 0:02:43]} Nd6 {[%emt 0:05:00]} 32. h4 {[%emt 0:01:17] Weighted Error Value: White=0.06 (flawless) /Black=0.04 (flawless)} 1/2-1/2